fUST/lending_fUST_20260221
["ID","MTS","AMOUNT","RATE_DAILY","PERIOD"]
[406247995,1771660238958,-500.0,0.00027496,2]
[406247997,1771660238967,-500.0,0.00027496,2]
[406247999,1771660238976,-500.0,0.00027496,2]
[406248001,1771660238985,-500.0,0.00027496,2]
[406248003,1771660238994,-500.0,0.00027496,2]
[406248005,1771660239003,-500.0,0.00027496,2]
[406248007,1771660239012,-168.0,0.00027524,2]
[406248009,1771660239021,-500.0,0.00027552,7]
[406248011,1771660239030,-168.0,0.00027869,2]
[406248013,1771660239039,-7095.7775815,0.00027971,2]
[406248014,1771660239048,-168.0,0.00028023,2]
[406248016,1771660239057,-168.0,0.00028059,2]
[406248018,1771660239067,-168.0,0.00028377,2]
[406248020,1771660239076,-242.0389688,0.0002848,2]
[406248022,1771660239084,-169.42727815,0.0002848,2]
[406248024,1771660239093,-250.0,0.0002848,2]
[406248026,1771660239102,-500.0,0.0002848,2]
[406248028,1771660239111,-250.0,0.0002848,2]
[406248030,1771660239120,-250.0,0.0002848,2]
[406248032,1771660239130,-500.0,0.0002848,2]
[406248034,1771660239139,-250.0,0.0002848,2]
[406248036,1771660239148,-250.0,0.0002848,2]
[406248038,1771660239157,-500.0,0.0002848,2]
[406248040,1771660239167,-250.0,0.0002848,2]
[406248042,1771660239185,-250.0,0.0002848,2]
[406248044,1771660239205,-500.0,0.0002848,2]
[406248046,1771660239225,-250.0,0.0002848,2]
[406248048,1771660239247,-250.0,0.0002848,2]
[406248050,1771660239267,-181.08010149,0.0002848,2]
[406248052,1771660239288,-500.0,0.0002848,2]
[406248054,1771660239311,-250.0,0.0002848,2]
[406248056,1771660239333,-250.0,0.0002848,2]
[406248058,1771660239353,-187.78006525,0.0002848,2]
[406248060,1771660239374,-500.0,0.0002848,2]
[406248062,1771660239398,-250.0,0.0002848,2]
[406248069,1771660239516,-250.0,0.0002848,2]
[406248071,1771660239526,-194.72792766,0.0002848,2]
[406248073,1771660239535,-500.0,0.0002848,2]
[406248075,1771660239544,-250.0,0.0002848,2]
[406248077,1771660239553,-500.0,0.0002848,2]
[406248079,1771660239561,-250.0,0.0002848,2]
[406248081,1771660239570,-500.0,0.0002848,2]
[406248083,1771660239579,-186.90185214,0.0002848,2]
[406248085,1771660239588,-250.0,0.0002848,2]
[406248087,1771660239598,-250.0,0.0002848,2]
[406248089,1771660239607,-250.0,0.0002848,2]
[406248091,1771660239616,-344.80563706,0.0002848,2]
[406248093,1771660239625,-250.0,0.0002848,2]
[406248094,1771660239634,-250.0,0.0002848,2]
[406248096,1771660239644,-201.93286099,0.0002848,2]
[406248098,1771660239653,-250.0,0.0002848,2]
[406248101,1771660239663,-500.0,0.0002848,2]
[406248102,1771660239672,-500.0,0.0002848,2]
[406248104,1771660239681,-250.0,0.0002848,2]
[406248106,1771660239689,-203.309012,0.0002848,2]
[406248108,1771660239698,-209.40437684,0.0002848,2]
[406248110,1771660239707,-500.0,0.0002848,2]
[406248112,1771660239716,-217.15233878,0.0002848,2]
[406248114,1771660239725,-225.18697532,0.0002848,2]
[406248116,1771660239733,-500.0,0.0002848,2]
[406248118,1771660239742,-233.51889341,0.0002848,2]
[406248120,1771660239751,-500.0,0.0002848,2]
[406248122,1771660239760,-242.15909246,0.0002848,2]
[406248124,1771660239769,-500.0,0.0002848,2]
[406248126,1771660239777,-250.0,0.0002848,2]
[406248128,1771660239786,-251.11897888,0.0002848,2]
[406248130,1771660239795,-600.85811203,0.0002848,2]
[406248133,1771660239804,-250.0,0.0002848,2]
[406248135,1771660239813,-260.4103811,0.0002848,2]
[406248137,1771660239822,-270.0455652,0.0002848,2]
[406248139,1771660239831,-280.03725112,0.0002848,2]
[406248141,1771660239839,-290.39862941,0.0002848,2]
[406248143,1771660239848,-301.1433787,0.0002848,2]
[406248145,1771660239856,-5000.0,0.000285,30]
[406248147,1771660239865,-500.0,0.00028559,7]
[406248149,1771660239874,-500.0,0.0002861,7]
[406248151,1771660239883,-168.0,0.00028616,2]
[406248153,1771660239893,-3620.575883,0.00028618,13]
[406248155,1771660239902,-885.7323112,0.0002864,7]
[406248157,1771660239911,-179.06627,0.00028659,2]
[406248159,1771660239920,-168.0,0.00028686,2]
[406248161,1771660239929,-683.15,0.0002875,30]
[406248163,1771660239938,-270.09,0.00028786,3]
[406248165,1771660239947,-810.31,0.00028786,3]
[406248167,1771660239956,-2068.10868285,0.00028786,2]
[406248169,1771660239966,-222.48,0.00028796,10]
[406248171,1771660239976,-5514.9564876,0.00028796,2]
[406248174,1771660239985,-166.66,0.000288,7]
[406248177,1771660239994,-168.0,0.00028803,7]
[406248179,1771660240003,-107503.73050714,0.00028806,2]
[406248182,1771660240023,-26970.61618943,0.00028806,2]
[406248184,1771660240034,-3158.34040225,0.00028806,2]
[406248687,1771660244716,-380.97,0.00028796,10]
[406248689,1771660244725,-7250.30172655,0.00028806,2]
[406248691,1771660244736,-1400.20670523,0.00028806,2]
[406251106,1771660553707,-380.0,0.00013426,5]
[406251161,1771661280269,190.5,6.494e-05,2]
[406251162,1771661280519,190.5,6.494e-05,2]
[406251249,1771661438489,-797.46236945,0.00012389,2]
[406251251,1771661438498,-2087.18885454,0.00012514,2]
[406251252,1771661438508,-150.0,0.00012704,2]
[406251254,1771661438518,-649.40562872,0.00013699,2]
[406251256,1771661438529,-165.78854723,0.00013699,2]
[406251258,1771661438538,-203.2,0.000137,2]
[406251260,1771661438548,-1347.72516929,0.00014175,2]
[406251262,1771661438557,-177.0,0.00014704,2]
[406251264,1771661438567,-1500.0,0.00015,2]
[406251266,1771661438576,-300.0,0.00015543,2]
[406251268,1771661438586,-430.0,0.00015543,2]
[406251270,1771661438595,-2648.95745198,0.00015544,2]
[406251273,1771661438614,-300.0,0.00015853,2]
[406251274,1771661438629,-300.0,0.00015854,2]
[406251275,1771661438639,-300.0,0.00015854,2]
[406251276,1771661438649,-300.0,0.00015854,2]
[406251277,1771661438658,-300.0,0.00015854,2]
[406251278,1771661438670,-300.0,0.00015854,2]
[406251279,1771661438680,-300.0,0.00015854,2]
[406251280,1771661438690,-300.0,0.00015854,2]
[406251281,1771661438701,-300.0,0.00015854,2]
[406251282,1771661438711,-300.0,0.00015854,2]
[406251283,1771661438721,-300.0,0.00015854,2]
[406251284,1771661438731,-300.0,0.00015854,2]
[406251285,1771661438741,-300.0,0.00015854,2]
[406251286,1771661438751,-300.0,0.00015854,2]
[406251287,1771661438760,-300.0,0.00015854,2]
[406251288,1771661438770,-300.0,0.00015854,2]
[406251289,1771661438779,-204.0,0.00016704,2]
[406251290,1771661438789,-3950.18973468,0.00016913,2]
[406251291,1771661438799,-199.0,0.00017002,2]
[406251292,1771661438809,-1245.45968,0.0001731,2]
[406251293,1771661438819,-4142.41723111,0.00018281,2]
[406251294,1771661438828,-231.0,0.00018704,2]
[406251295,1771661438838,-4970.47413815,0.0001965,2]
[406251296,1771661438848,-600.0,0.00020042,2]
[406251297,1771661438858,-258.0,0.00020704,2]
[406251298,1771661438867,-500.0,0.00020918,2]
[406251299,1771661438876,-194.51,0.00020918,2]
[406251300,1771661438885,-194.51,0.00020918,2]
[406251301,1771661438894,-602.01997972,0.0002096,2]
[406251302,1771661438904,-500.0,0.0002096,2]
[406251303,1771661438913,-500.0,0.0002096,2]
[406251304,1771661438922,-208.36180598,0.0002096,2]
[406251305,1771661438932,-500.0,0.0002096,2]
[406251306,1771661438941,-399.63834427,0.0002096,2]
[406251307,1771661438951,-500.0,0.0002096,2]
[406251308,1771661438960,-500.0,0.0002096,2]
[406251310,1771661438969,-218.47812378,0.0002096,2]
[406251311,1771661438979,-500.0,0.0002096,2]
[406251312,1771661438988,-500.0,0.0002096,2]
[406251314,1771661438997,-500.0,0.0002096,2]
[406251316,1771661439007,-500.0,0.0002096,2]
[406251318,1771661439017,-500.0,0.0002096,2]
[406251320,1771661439027,-500.0,0.0002096,2]
[406251322,1771661439036,-500.0,0.0002096,2]
[406251324,1771661439046,-500.0,0.0002096,2]
[406251326,1771661439057,-500.0,0.0002096,2]
[406251328,1771661439066,-500.0,0.0002096,2]
[406251330,1771661439076,-500.0,0.0002096,2]
[406251332,1771661439086,-500.0,0.0002096,2]
[406251335,1771661439095,-513.47968226,0.0002096,2]
[406251337,1771661439105,-500.0,0.0002096,2]
[406251339,1771661439116,-172.18191553,0.0002096,2]
[406251340,1771661439126,-500.0,0.0002096,2]
[406251343,1771661439136,-500.0,0.0002096,2]
[406251345,1771661439145,-281.60816152,0.0002096,2]
[406251347,1771661439155,-500.0,0.0002096,2]
[406251348,1771661439164,-500.0,0.0002096,2]
[406251350,1771661439173,-500.0,0.0002096,2]
[406251352,1771661439183,-500.0,0.0002096,2]
[406251355,1771661439192,-500.0,0.0002096,2]
[406251357,1771661439201,-500.0,0.0002096,2]
[406251359,1771661439211,-500.0,0.0002096,2]
[406251361,1771661439220,-500.0,0.0002096,2]
[406251363,1771661439230,-500.0,0.0002096,2]
[406251365,1771661439240,-500.0,0.0002096,2]
[406251367,1771661439250,-500.0,0.0002096,2]
[406251369,1771661439259,-500.0,0.0002096,2]
[406251371,1771661439269,-500.0,0.0002096,2]
[406251373,1771661439278,-500.0,0.0002096,2]
[406251375,1771661439287,-500.0,0.0002096,2]
[406251377,1771661439297,-500.0,0.0002096,2]
[406251379,1771661439306,-500.0,0.0002096,2]
[406251381,1771661439318,-500.0,0.0002096,2]
[406251383,1771661439327,-500.0,0.0002096,2]
[406251385,1771661439337,-518.35015948,0.0002096,2]
[406251387,1771661439346,-500.0,0.0002096,2]
[406251388,1771661439355,-545.56622443,0.0002096,2]
[406251391,1771661439365,-500.0,0.0002096,2]
[406251393,1771661439374,-500.0,0.0002096,2]
[406251395,1771661439384,-500.0,0.0002096,2]
[406251397,1771661439395,-500.0,0.0002096,2]
[406251399,1771661439404,-500.0,0.0002096,2]
[406251401,1771661439414,-500.0,0.0002096,2]
[406251403,1771661439424,-500.0,0.0002096,2]
[406251405,1771661439433,-500.0,0.0002096,2]
[406251407,1771661439442,-500.0,0.0002096,2]
[406251409,1771661439451,-500.0,0.0002096,2]
[406251411,1771661439460,-500.0,0.0002096,2]
[406251413,1771661439470,-500.0,0.0002096,2]
[406251415,1771661439480,-500.0,0.0002096,2]
[406251417,1771661439489,-500.0,0.0002096,2]
[406251419,1771661439498,-500.0,0.0002096,2]
[406251421,1771661439507,-500.0,0.0002096,2]
[406251423,1771661439517,-500.0,0.0002096,2]
[406251425,1771661439526,-500.0,0.0002096,2]
[406251427,1771661439536,-500.0,0.0002096,2]
[406251429,1771661439545,-500.0,0.0002096,2]
[406251431,1771661439555,-500.0,0.0002096,2]
[406251433,1771661439564,-500.0,0.0002096,2]
[406251435,1771661439574,-500.0,0.0002096,2]
[406251437,1771661439583,-500.0,0.0002096,2]
[406251439,1771661439593,-500.0,0.0002096,2]
[406251441,1771661439602,-500.0,0.0002096,2]
[406251443,1771661439612,-500.0,0.0002096,2]
[406251445,1771661439625,-500.0,0.0002096,2]
[406251447,1771661439637,-500.0,0.0002096,2]
[406251449,1771661439646,-261.51355835,0.0002096,2]
[406251451,1771661439655,-500.0,0.0002096,2]
[406251453,1771661439666,-500.0,0.00020961,2]
[406251455,1771661439675,-197.77843501,0.00021018,2]
[406251457,1771661439684,-5251.42201737,0.00021019,2]
[406251459,1771661439694,-494.52539816,0.00021235,2]
[406251461,1771661439703,-4040.5493932,0.0002142,2]
[406251463,1771661439712,-2239.627,0.00021544,2]
[406251465,1771661439721,-1456.971,0.00021544,2]
[406251467,1771661439731,-639.306,0.00021544,2]
[406251469,1771661439741,-491.855,0.00021544,2]
[406251471,1771661439750,-195.509,0.00021544,2]
[406251473,1771661439759,-150.0,0.00021918,2]
[406251475,1771661439769,-150.0,0.00021918,2]
[406251477,1771661439780,-720.0,0.00022046,10]
[406251479,1771661439789,-2236.84550766,0.00022315,2]
[406251481,1771661439798,-5798.53104532,0.00022388,2]
[406251483,1771661439807,-300.0,0.00022466,2]
[406251485,1771661439816,-200.0,0.00022466,2]
[406251487,1771661439826,-285.0,0.00022704,2]
[406251490,1771661439837,-500.0,0.00022913,2]
[406251491,1771661439846,-451.68277649,0.00023014,2]
[406251494,1771661439855,-250.32536198,0.00023014,2]
[406251496,1771661439865,-268.69898647,0.00023772,2]
[406251498,1771661439876,-864.0,0.00024251,10]
[406251500,1771661439886,-288.12336046,0.00024699,2]
[406251502,1771661439895,-312.0,0.00024704,2]
[406251504,1771661439904,-585.56,0.00025,7]
[406251506,1771661439914,-350.44,0.0002508,10]
[406251508,1771661439925,-310.21630243,0.0002509,2]
[406251510,1771661439935,-204.65,0.0002509,10]
[406251512,1771661439944,-898.49,0.000251,7]
[406251514,1771661439953,-187.734954,0.0002545,2]
[406251516,1771661439962,-150.0,0.000255,7]
[406251518,1771661439972,-178.26256131,0.00025703,2]
[406251520,1771661439981,-465.0,0.00026357,10]
[406251522,1771661439990,-7454.64485965,0.00026494,7]
[406251524,1771661439999,-181.08010149,0.00026653,2]
[406251526,1771661440008,-1000.0,0.00026676,30]
[406251527,1771661440017,-270.0,0.00026898,2]
[406251529,1771661440026,-743.87469872,0.00027163,2]
[406251532,1771661440035,-500.0,0.00027178,2]
[406251533,1771661440046,-500.0,0.00027178,2]
[406251535,1771661440055,-151.71502368,0.00027178,2]
[406251537,1771661440064,-150.0,0.00027178,2]
[406251540,1771661440074,-171.206463,0.00027178,2]
[406251541,1771661440083,-290.10639746,0.00027178,2]
[406251544,1771661440092,-153.48444344,0.00027178,2]
[406251546,1771661440102,-157.70216314,0.00027178,2]
[406251548,1771661440112,-150.0,0.00027178,2]
[406251550,1771661440121,-500.0,0.00027178,2]
[406251552,1771661440131,-500.0,0.00027178,2]
[406251554,1771661440141,-500.0,0.00027178,2]
[406251556,1771661440151,-500.0,0.00027178,2]
[406251558,1771661440159,-500.0,0.00027178,2]
[406251560,1771661440168,-260.52159338,0.00027178,2]
[406251562,1771661440177,-500.0,0.00027178,2]
[406251564,1771661440186,-150.0,0.00027178,2]
[406251566,1771661440195,-500.0,0.00027178,2]
[406251568,1771661440205,-176.77557071,0.00027178,2]
[406251570,1771661440214,-150.0,0.00027178,2]
[406251572,1771661440223,-150.0,0.00027178,2]
[406251574,1771661440232,-321.0,0.00027186,2]
[406251576,1771661440243,-500.0,0.00027233,2]
[406251578,1771661440252,-500.0,0.00027233,2]
[406251580,1771661440261,-150.0,0.00027233,2]
[406251582,1771661440271,-500.0,0.00027233,2]
[406251585,1771661440281,-500.0,0.00027233,2]
[406251587,1771661440290,-500.0,0.00027233,2]
[406251589,1771661440299,-150.0,0.00027233,2]
[406251602,1771661440409,-599.86760583,0.00027233,2]
[406251604,1771661440419,-500.0,0.00027233,2]
[406251606,1771661440428,-500.0,0.00027233,2]
[406251608,1771661440438,-150.0,0.00027233,2]
[406251610,1771661440447,-500.0,0.00027233,2]
[406251612,1771661440457,-150.0,0.00027233,2]
[406251614,1771661440466,-150.0,0.00027233,2]
[406251616,1771661440475,-183.25563263,0.00027288,2]
[406251618,1771661440484,-500.0,0.00027288,2]
[406251620,1771661440493,-150.0,0.00027288,2]
[406251622,1771661440502,-500.0,0.00027288,2]
[406251624,1771661440510,-500.0,0.00027288,2]
[406251626,1771661440520,-638.23829109,0.00027288,2]
[406251628,1771661440529,-238.37272053,0.00027288,2]
[406251630,1771661440538,-150.0,0.00027288,2]
[406251632,1771661440548,-500.0,0.00027288,2]
[406251634,1771661440557,-200.0,0.00027288,2]
[406251636,1771661440566,-500.0,0.00027288,2]
[406251638,1771661440574,-190.81375114,0.00027288,2]
[406251640,1771661440584,-150.0,0.00027288,2]
[406251642,1771661440593,-500.0,0.00027342,2]
[406251644,1771661440602,-150.0,0.00027342,2]
[406251646,1771661440612,-500.0,0.00027342,2]
[406251649,1771661440626,-500.0,0.00027342,2]
[406251651,1771661440636,-150.0,0.00027342,2]
[406251653,1771661440646,-500.0,0.00027342,2]
[406251655,1771661440655,-500.0,0.00027342,2]
[406251657,1771661440666,-150.0,0.00027342,2]
[406251659,1771661440675,-500.0,0.00027357,7]
[406251661,1771661440684,-743.87469872,0.00027357,7]
[406251663,1771661440696,-500.0,0.00027397,2]
[406251665,1771661440705,-252.93706612,0.00027397,2]
[406251667,1771661440714,-630.877447,0.00027397,2]
[406251669,1771661440724,-500.0,0.00027397,2]
[406251671,1771661440734,-187.00031284,0.00027397,2]
[406251673,1771661440743,-500.0,0.00027397,2]
[406251675,1771661440753,-213.64538536,0.00027397,2]
[406251677,1771661440762,-278.76119084,0.00027452,2]
[406251679,1771661440772,-500.0,0.00027452,2]
[406251681,1771661440781,-500.0,0.00027452,2]
[406251683,1771661440790,-520.87072159,0.00027496,19]
[406251685,1771661440799,-500.0,0.00027496,2]
[406251687,1771661440808,-500.0,0.00027496,16]
[406251689,1771661440818,-500.0,0.00027496,16]
[406251691,1771661440827,-500.0,0.00027496,10]
[406251693,1771661440836,-500.0,0.00027507,2]
[406251695,1771661440845,-500.0,0.00027507,2]
[406251697,1771661440854,-337.98318211,0.00027562,2]
[406251699,1771661440863,-500.0,0.00027562,2]
[406251701,1771661440872,-500.0,0.00027616,2]
[406251703,1771661440881,-500.0,0.00027671,2]
[406251705,1771661440890,-150.0,0.000277,7]
[406251707,1771661440899,-500.0,0.00027726,2]
[406251709,1771661440909,-585.56,0.00027729,7]
[406251711,1771661440918,-500.0,0.00027781,2]
[406251713,1771661440927,-418.9144379,0.00027836,2]
[406251715,1771661440937,-7853.88658275,0.00027863,11]
[406251717,1771661440947,-500.0,0.00028026,7]
[406251719,1771661440957,-500.0,0.00028481,7]
[406251721,1771661440966,-500.0,0.00028511,7]
[406251723,1771661440976,-500.0,0.00028521,2]
[406251725,1771661440985,-310.21630243,0.0002866,2]
[406251727,1771661440994,-500.0,0.0002867,7]
[406251729,1771661441003,-500.0,0.00028691,7]
[406251731,1771661441012,-1174.421,0.0002875,120]
[406251733,1771661441021,-533.51,0.00028765,3]
[406251735,1771661441030,-355.65,0.00028786,3]
[406251737,1771661441040,-177.82,0.00028786,3]
[406251739,1771661441050,-310.21630243,0.00028786,2]
[406251741,1771661441059,-200.0,0.00028795,18]
[406251743,1771661441067,-310.21630243,0.00028795,2]
[406251745,1771661441076,-500.0,0.00028795,2]
[406251747,1771661441085,-500.0,0.00028795,2]
[406251749,1771661441095,-500.0,0.00028795,2]
[406251751,1771661441104,-500.0,0.00028795,16]
[406251753,1771661441113,-500.0,0.00028795,16]
[406251755,1771661441122,-500.0,0.00028795,16]
[406251757,1771661441131,-620.08307918,0.00028795,16]
[406251758,1771661441143,-500.0,0.00028795,10]
[406251760,1771661441153,-500.0,0.00028795,10]
[406251762,1771661441162,-500.0,0.00028795,10]
[406251765,1771661441171,-500.0,0.00028795,2]
[406251767,1771661441180,-500.0,0.00028795,2]
[406251768,1771661441188,-500.0,0.00028795,2]
[406251770,1771661441197,-151.0,0.00028796,7]
[406251773,1771661441207,-1240.86520972,0.00028796,2]
[406251774,1771661441216,-500.0,0.00028804,2]
[406251776,1771661441225,-500.0,0.00028804,16]
[406251778,1771661441234,-500.0,0.00028804,10]
[406251781,1771661441243,-500.0,0.00028804,2]
[406251782,1771661441252,-9000.0,0.00028805,2]
[406251784,1771661441261,-2328.04465594,0.00028805,2]
[406251786,1771661441270,-500.0,0.00028805,2]
[406251788,1771661441279,-500.0,0.00028805,2]
[406251790,1771661441288,-500.0,0.00028805,2]
[406251792,1771661441297,-500.0,0.00028805,2]
[406251794,1771661441306,-500.0,0.00028805,2]
[406251796,1771661441315,-500.0,0.00028805,2]
[406251798,1771661441324,-500.0,0.00028805,2]
[406251800,1771661441333,-500.0,0.00028805,2]
[406251802,1771661441342,-500.0,0.00028805,2]
[406251804,1771661441351,-500.0,0.00028805,2]
[406251806,1771661441360,-500.0,0.00028805,16]
[406251808,1771661441370,-500.0,0.00028805,16]
[406251810,1771661441379,-545.92888316,0.00028805,16]
[406251812,1771661441388,-500.0,0.00028805,10]
[406251814,1771661441397,-500.0,0.00028805,10]
[406251817,1771661441406,-500.0,0.00028805,10]
[406251818,1771661441416,-500.0,0.00028805,10]
[406251820,1771661441425,-420.0714552,0.00028805,10]
[406251822,1771661441434,-500.0,0.00028805,2]
[406251824,1771661441443,-500.0,0.00028805,2]
[406251826,1771661441452,-500.0,0.00028805,2]
[406251828,1771661441462,-500.0,0.00028805,2]
[406251830,1771661441471,-500.0,0.00028805,2]
[406251832,1771661441480,-500.0,0.00028805,2]
[406251835,1771661441489,-500.0,0.00028805,2]
[406251837,1771661441499,-500.0,0.00028805,2]
[406251838,1771661441508,-500.0,0.00028805,2]
[406251840,1771661441517,-623.41980092,0.00028805,2]
[406251842,1771661441527,-90564.99097822,0.00028806,2]
[406251852,1771661441609,-100608.77707628,0.00028806,2]
[406251854,1771661441620,-15249.83682382,0.00028806,2]
[406251856,1771661441633,-151.0,0.00028806,7]
[406251858,1771661441642,-500.0,0.00028899,2]
[406251860,1771661441652,-500.0,0.00028899,2]
[406251863,1771661441661,-500.0,0.00028899,2]
[406251864,1771661441673,-500.0,0.00028899,2]
[406251866,1771661441681,-500.0,0.00028899,2]
[406251869,1771661441690,-500.0,0.00028899,2]
[406251871,1771661441702,-500.0,0.00028899,2]
[406251872,1771661441711,-627.64,0.00028899,2]
[406251874,1771661441721,-960.02,0.000289,14]
[406251877,1771661441731,-183.23,0.000289,7]
[406251879,1771661441740,-168.0,0.00028915,2]
[406251880,1771661441749,-168.0,0.00028924,2]
[406251882,1771661441758,-310.21630243,0.0002898,2]
[406251885,1771661441767,-53461.30895353,0.0002899,2]
[406251887,1771661441779,-233.744599,0.0002899,7]
[406251888,1771661441788,-310.21630243,0.00029222,2]
[406251891,1771661441797,-8282.70176682,0.00029232,14]
[406251892,1771661441806,-168.0,0.00029238,2]
[406251894,1771661441815,-1000.0,0.00029343,30]
[406251896,1771661441825,-244.0,0.00029343,30]
[406251899,1771661441835,-265.56635055,0.0002936,14]
[406251901,1771661441845,-806.03494685,0.00029427,7]
[406251902,1771661441854,-168.0,0.00029433,2]
[406251905,1771661441863,-4320.8777373,0.000297,14]
[406251906,1771661441872,-150.0,0.000297,7]
[406251909,1771661441881,-1054.23097665,0.0002985,7]
[406251910,1771661441890,-544.82495218,0.00029851,7]
[406251913,1771661441899,-487.0,0.0002991,2]
[406251914,1771661441908,-487.0,0.0002991,2]
[406251916,1771661441917,-487.0,0.0002991,2]
[406251918,1771661441926,-487.0,0.0002991,2]
[406251921,1771661441935,-487.0,0.0002991,2]
[406251922,1771661441944,-487.0,0.0002991,2]
[406251923,1771661441954,-487.0,0.0002991,2]
[406251924,1771661441963,-487.0,0.0002991,2]
[406251925,1771661441972,-487.0,0.0002991,2]
[406251926,1771661441981,-487.0,0.0002991,2]
[406251927,1771661441989,-487.0,0.0002991,2]
[406251928,1771661441999,-921.43,0.0002991,2]
[406251929,1771661442007,-1220.55001246,0.0003,2]
[406251930,1771661442016,-162.67690952,0.0003,120]
[406251931,1771661442026,-195.04095216,0.0003,2]
[406251932,1771661442044,-1501.88465,0.0003,2]
[406251933,1771661442054,-500.0,0.00030098,7]
[406251934,1771661442062,-200.0,0.00030104,22]
[406251935,1771661442071,-711.3,0.00030156,3]
[406251937,1771661442081,-355.64,0.00030156,3]
[406251939,1771661442090,-297.69774396,0.00030323,94]
[406251941,1771661442099,-500.0,0.00030377,7]
[406251943,1771661442108,-177.10100623,0.00030439,110]
[406251945,1771661442117,-310.21630243,0.00030442,2]
[406251947,1771661442126,-150.0,0.00030452,60]
[406251948,1771661442135,-219.70660324,0.00030452,60]
[406251950,1771661442144,-150.0,0.00030452,60]
[406251952,1771661442154,-153.24783938,0.00030452,60]
[406251954,1771661442162,-585.56,0.00030458,30]
[406251956,1771661442173,-152.43670972,0.00030507,60]
[406251958,1771661442183,-152.44047995,0.00030507,60]
[406251960,1771661442192,-314.86750155,0.00030521,14]
[406251962,1771661442201,-9110.75867399,0.000306,14]
[406251964,1771661442210,-155.184025,0.00030602,7]
[406251966,1771661442219,-419.65481795,0.00030703,14]
[406251968,1771661442228,-960.02,0.000308,14]
[406251970,1771661442237,-8000.0,0.00031,120]
[406251972,1771661442246,-230.85505027,0.00031,7]
[406251974,1771661442255,-230.85505027,0.00031,7]
[406251976,1771661442264,-500.0,0.00031019,7]
[406251978,1771661442275,-500.0,0.00031033,7]
[406251980,1771661442283,-200.0,0.00031108,26]
[406251982,1771661442293,-200.0,0.00031527,28]
[406251984,1771661442302,-1583.2819881,0.0003153,2]
[406251986,1771661442311,-179.06627,0.00031675,2]
[406251988,1771661442319,-150.0,0.000317,7]
[406251990,1771661442329,-310.21630243,0.00031803,2]
[406251992,1771661442338,-25142.85782596,0.00031813,2]
[406251994,1771661442347,-650.68166642,0.00031841,7]
[406251996,1771661442356,-9155.11886545,0.00031969,14]
[406251998,1771661442366,-826.99414565,0.00032,3]
[406252000,1771661442375,-535.22116863,0.00032046,14]
[406252002,1771661442385,-310.21630243,0.0003208,2]
[406252004,1771661442393,-18645.72789843,0.000321,3]
[406252006,1771661442403,-1105.09,0.000321,2]
[406252008,1771661442412,-207.0,0.00032164,14]
[406252010,1771661442421,-151.0,0.000322,17]
[406252012,1771661442430,-1000.0,0.00032278,30]
[406252014,1771661442439,-492.0,0.00032278,30]
[406252016,1771661442448,-353.2779635,0.00032324,2]
[406252018,1771661442458,-723.0,0.0003246,11]
[406252020,1771661442467,-714.0,0.0003246,11]
[406252022,1771661442477,-272.15,0.00032609,2]